fUST/lending_fUST_20250428
["ID","MTS","AMOUNT","RATE_DAILY","PERIOD"]
[359201473,1745806245151,-400.0,0.00034246,2]
[359201474,1745806245160,-400.0,0.00034246,2]
[359201475,1745806245169,-182.65943303,0.00034246,2]
[359201476,1745806245179,-400.0,0.00034246,2]
[359201477,1745806245188,-273.44372977,0.00034246,2]
[359201478,1745806245198,-400.0,0.00034246,2]
[359201479,1745806245208,-400.0,0.00034246,2]
[359201480,1745806245219,-400.0,0.00034246,2]
[359201481,1745806245229,-416.30335895,0.00034246,2]
[359201482,1745806245238,-400.0,0.00034246,2]
[359201483,1745806245246,-463.23422731,0.00034246,2]
[359201484,1745806245255,-400.0,0.00034246,2]
[359201485,1745806245264,-400.0,0.00034246,2]
[359201486,1745806245273,-400.0,0.00034246,2]
[359201487,1745806245283,-408.16,0.00034246,2]
[359201488,1745806245292,-528.96064537,0.00034246,2]
[359201489,1745806245302,-506.93601793,0.00034246,2]
[359201490,1745806245311,-876.53,0.00034246,2]
[359201491,1745806245320,-544.83257363,0.00034246,2]
[359201492,1745806245330,-400.0,0.00034246,2]
[359201493,1745806245340,-400.0,0.00034246,2]
[359201494,1745806245349,-536.20887646,0.00034246,2]
[359201495,1745806245358,-634.91,0.00034246,2]
[359201496,1745806245367,-205.72261174,0.00034246,2]
[359201497,1745806245377,-432.9,0.00034246,2]
[359201498,1745806245386,-400.0,0.00034246,2]
[359201499,1745806245395,-400.0,0.00034246,2]
[359201500,1745806245404,-400.0,0.00034246,2]
[359201501,1745806245413,-400.0,0.00034246,2]
[359201502,1745806245422,-400.0,0.00034246,2]
[359201503,1745806245432,-1812.19,0.000344,7]
[359201504,1745806245442,-400.0,0.0003452,2]
[359201505,1745806245450,-400.0,0.0003452,2]
[359201506,1745806245459,-400.0,0.0003452,2]
[359201507,1745806245469,-274.98960976,0.0003452,2]
[359201508,1745806245479,-400.0,0.0003452,2]
[359201509,1745806245489,-400.0,0.0003452,2]
[359201510,1745806245499,-400.0,0.0003452,2]
[359201511,1745806245511,-302.92601112,0.0003452,2]
[359201512,1745806245520,-400.0,0.0003452,2]
[359201513,1745806245530,-400.0,0.0003452,2]
[359201514,1745806245539,-346.5312827,0.0003452,2]
[359201515,1745806245550,-408.16,0.0003452,2]
[359201516,1745806245560,-876.53,0.0003452,2]
[359201517,1745806245569,-400.0,0.0003452,2]
[359201518,1745806245579,-400.0,0.0003452,2]
[359201519,1745806245589,-634.91,0.0003452,2]
[359201520,1745806245598,-432.9,0.0003452,2]
[359201521,1745806245607,-400.0,0.0003452,2]
[359201522,1745806245617,-400.0,0.0003452,2]
[359201523,1745806245626,-400.0,0.0003452,2]
[359201524,1745806245636,-400.0,0.0003452,2]
[359201525,1745806245645,-400.0,0.0003452,2]
[359201526,1745806245655,-188.826431,0.00034527,2]
[359201527,1745806245665,-400.0,0.00034794,2]
[359201528,1745806245674,-400.0,0.00034794,2]
[359201529,1745806245683,-317.11333575,0.00034794,2]
[359201530,1745806245692,-400.0,0.00034794,2]
[359201531,1745806245702,-400.0,0.00034794,2]
[359201532,1745806245712,-230.88772261,0.00034794,2]
[359201533,1745806245724,-400.0,0.00034794,2]
[359201534,1745806245734,-400.0,0.00034794,2]
[359201535,1745806245744,-408.16,0.00034794,2]
[359201536,1745806245753,-876.53,0.00034794,2]
[359201537,1745806245763,-400.0,0.00034794,2]
[359201538,1745806245772,-400.0,0.00034794,2]
[359201539,1745806245781,-634.91,0.00034794,2]
[359201540,1745806245791,-432.9,0.00034794,2]
[359201541,1745806245800,-400.0,0.00034794,2]
[359201542,1745806245810,-400.0,0.00034794,2]
[359201543,1745806245819,-400.0,0.00034794,2]
[359201544,1745806245828,-400.0,0.00034794,2]
[359201545,1745806245838,-400.0,0.00034794,2]
[359201546,1745806245848,-600.0,0.00034816,5]
[359201547,1745806245864,-155.0,0.00034999,30]
[359201548,1745806245875,-151.0,0.00034999,30]
[359201549,1745806245888,-200.0,0.00034999,30]
[359201550,1745806245906,-151.25470582,0.00034999,30]
[359201551,1745806245916,-151.0,0.00034999,30]
[359201552,1745806245926,-151.0,0.00034999,30]
[359201553,1745806245937,-151.0,0.00034999,30]
[359201554,1745806245947,-151.0,0.00034999,30]
[359201555,1745806245956,-205.9021066,0.00034999,30]
[359201556,1745806245965,-400.0,0.00035068,2]
[359201557,1745806245974,-428.41,0.00035068,2]
[359201558,1745806245984,-400.0,0.00035068,2]
[359201559,1745806245993,-400.0,0.00035068,2]
[359201560,1745806246003,-400.0,0.00035068,2]
[359201561,1745806246013,-400.0,0.00035068,2]
[359201562,1745806246023,-408.16,0.00035068,2]
[359201564,1745806246032,-876.53,0.00035068,2]
[359201565,1745806246042,-400.0,0.00035068,2]
[359201566,1745806246052,-400.0,0.00035068,2]
[359201567,1745806246061,-634.91,0.00035068,2]
[359201568,1745806246071,-432.9,0.00035068,2]
[359201569,1745806246080,-400.0,0.00035068,2]
[359201570,1745806246090,-370.96,0.00035068,2]
[359201571,1745806246100,-400.0,0.00035068,2]
[359201572,1745806246110,-400.0,0.00035068,2]
[359201573,1745806246119,-400.0,0.00035068,2]
[359201574,1745806246129,-500.3072456,0.00035082,5]
[359201575,1745806246139,-500.95122119,0.00035082,5]
[359201576,1745806246148,-500.0,0.00035082,5]
[359201577,1745806246158,-521.01821581,0.00035082,5]
[359201578,1745806246168,-501.65208727,0.00035082,5]
[359201579,1745806246179,-501.12664952,0.00035082,5]
[359201580,1745806246189,-500.61736159,0.00035082,5]
[359201582,1745806246198,-500.30947231,0.00035082,5]
[359201584,1745806246208,-500.41713557,0.00035082,5]
[359201587,1745806246219,-530.42895787,0.00035082,5]
[359201588,1745806246228,-500.36572365,0.00035082,5]
[359201590,1745806246238,-501.16613574,0.00035082,5]
[359201592,1745806246247,-500.0,0.00035082,5]
[359201594,1745806246257,-500.0,0.00035082,5]
[359201597,1745806246267,-500.0,0.00035082,5]
[359201599,1745806246277,-500.0,0.00035082,5]
[359201601,1745806246286,-205.97077518,0.00035233,12]
[359201603,1745806246296,-400.0,0.00035342,2]
[359201605,1745806246306,-400.0,0.00035342,2]
[359201607,1745806246316,-400.0,0.00035342,2]
[359201609,1745806246325,-400.0,0.00035342,2]
[359201611,1745806246335,-400.0,0.00035342,2]
[359201613,1745806246344,-408.16,0.00035342,2]
[359201615,1745806246357,-876.53,0.00035342,2]
[359201617,1745806246367,-411.57,0.00035342,2]
[359201619,1745806246376,-400.0,0.00035342,2]
[359201620,1745806246386,-634.91,0.00035342,2]
[359201622,1745806246396,-432.9,0.00035342,2]
[359201623,1745806246406,-400.0,0.00035342,2]
[359201624,1745806246415,-400.0,0.00035342,2]
[359201625,1745806246425,-218.27519585,0.00035342,2]
[359201626,1745806246435,-481.91,0.00035342,2]
[359201628,1745806246445,-400.0,0.00035616,2]
[359201630,1745806246454,-400.0,0.00035616,2]
[359201633,1745806246466,-400.0,0.00035616,2]
[359201635,1745806246476,-400.0,0.00035616,2]
[359201636,1745806246487,-400.0,0.00035616,2]
[359201638,1745806246497,-408.16,0.00035616,2]
[359201640,1745806246508,-876.53,0.00035616,2]
[359201642,1745806246519,-400.0,0.00035616,2]
[359201644,1745806246529,-634.91,0.00035616,2]
[359201646,1745806246539,-432.9,0.00035616,2]
[359201648,1745806246549,-400.0,0.00035616,2]
[359201650,1745806246559,-400.0,0.00035616,2]
[359201652,1745806246569,-400.0,0.0003589,2]
[359201654,1745806246579,-400.0,0.0003589,2]
[359201655,1745806246589,-400.0,0.0003589,2]
[359201658,1745806246599,-400.0,0.0003589,2]
[359201659,1745806246610,-204.50460148,0.0003589,2]
[359201661,1745806246621,-408.16,0.0003589,2]
[359201663,1745806246631,-876.53,0.0003589,2]
[359201665,1745806246641,-495.2728169,0.0003589,2]
[359201667,1745806246651,-634.91,0.0003589,2]
[359201669,1745806246661,-432.9,0.0003589,2]
[359201670,1745806246671,-400.0,0.0003589,2]
[359201672,1745806246682,-400.0,0.0003589,2]
[359201674,1745806246692,-925.7,0.000359,7]
[359201676,1745806246702,-223.0,0.00036,2]
[359201678,1745806246711,-223.0,0.00036,2]
[359201681,1745806246723,-223.0,0.00036,2]
[359201683,1745806246733,-400.0,0.00036164,2]
[359201685,1745806246743,-400.0,0.00036164,2]
[359201687,1745806246753,-399.29,0.00036164,2]
[359201688,1745806246763,-177.41522095,0.00036164,2]
[359201690,1745806246773,-408.16,0.00036164,2]
[359201692,1745806246783,-876.53,0.00036164,2]
[359201694,1745806246793,-634.91,0.00036164,2]
[359201696,1745806246803,-432.9,0.00036164,2]
[359201698,1745806246813,-400.0,0.00036164,2]
[359201700,1745806246823,-332.97042575,0.00036164,2]
[359201703,1745806246834,-500.70348162,0.00036173,5]
[359201705,1745806246843,-500.0,0.00036173,3]
[359201707,1745806246853,-500.0,0.00036173,5]
[359201709,1745806246863,-501.04981614,0.00036173,5]
[359201711,1745806246873,-269.97573872,0.00036173,5]
[359201713,1745806246882,-500.27735169,0.00036173,5]
[359201715,1745806246892,-530.88090057,0.00036173,5]
[359201717,1745806246902,-333.7364528,0.00036173,5]
[359201719,1745806246911,-503.06882158,0.00036173,5]
[359201721,1745806246921,-617.38952317,0.00036173,5]
[359201723,1745806246931,-500.0,0.00036173,5]
[359201725,1745806246940,-500.0,0.00036173,5]
[359201727,1745806246951,-501.44827743,0.00036173,5]
[359201729,1745806246960,-500.0,0.00036173,5]
[359201731,1745806246970,-500.0,0.00036173,5]
[359201733,1745806246979,-500.0,0.00036173,5]
[359201735,1745806246989,-500.0,0.00036173,5]
[359201737,1745806246999,-500.0,0.00036173,5]
[359201739,1745806247008,-501.22587563,0.00036173,5]
[359201741,1745806247018,-157.90778817,0.00036179,2]
[359201744,1745806247028,-103754.18466921,0.000362,30]
[359201754,1745806247112,-4171.96758888,0.000362,30]
[359201756,1745806247124,-2628.23219521,0.000362,30]
[359201761,1745806247165,-400.0,0.00032876,2]
[359201763,1745806247175,-864.11502845,0.000362,30]
[359201769,1745806247244,-400.0,0.00032876,2]
[359201770,1745806247254,-400.0,0.00032876,2]
[359201771,1745806247264,-400.0,0.0003315,2]
[359201772,1745806247273,-400.0,0.0003315,2]
[359201773,1745806247283,-274.0,0.00033424,2]
[359201774,1745806247293,-44483.08330887,0.000362,30]
[359201860,1745807144108,-362.43,0.00025,2]
[359201861,1745807144131,-300.0,0.00025669,2]
[359201862,1745807144153,-316.23432715,0.0002567,2]
[359201887,1745807233078,-160.0,0.00023959,2]
[359201888,1745807233101,-63.54818381,0.00025669,2]
[359201921,1745807319055,168.31318142,0.00025,120]
[359201924,1745807347114,-153.01388502,0.000168,2]
[359201925,1745807347136,-5008.39959289,0.000249,2]
[359201926,1745807347159,-326.19,0.00025,2]
[359201927,1745807347180,-300.0,0.00025669,2]
[359201928,1745807347202,-228.76567285,0.0002567,2]
[359201929,1745807347222,-2247.0,0.0002567,2]
[359201930,1745807347243,-706.0,0.0002567,2]
[359201931,1745807347265,-403.0,0.0002567,2]
[359201932,1745807347287,-205.53669378,0.000269,7]
[359201933,1745807352093,-246.65922312,0.00027,2]
[359201934,1745807352115,-313.28589057,0.00027,3]
[359201935,1745807352136,-339.58527751,0.00027,2]
[359201936,1745807352162,-3659.15488512,0.00027,2]
[359201937,1745807352183,-1500.0,0.00027397,2]
[359201938,1745807352205,-500.0,0.00027397,5]
[359201939,1745807352227,-420.0,0.00027789,2]
[359201940,1745807352250,-182.5567152,0.00027791,2]
[359201941,1745807352273,-205.53669368,0.00028082,7]
[359201942,1745807352293,-403.0,0.0002867,2]
[359201943,1745807352313,-1945.840606,0.00028723,120]
[359201944,1745807352333,-164.8698764,0.00028723,2]
[359201945,1745807352353,-188.899488,0.00028741,2]
[359201946,1745807352373,-4618.58699332,0.00028818,2]
[359201947,1745807360290,160.0,0.000249,2]
[359201948,1745807372636,182.0,0.00025,2]
[359201949,1745807373588,313.28589057,0.00027,3]
[359201955,1745807425291,154.81,0.000266,31]
[359201956,1745807425338,154.81,0.000269,31]
[359201957,1745807425398,154.81,0.000269,31]
[359201963,1745807432730,-154.81,0.000272,31]
[359201964,1745807432740,-154.81,0.000272,31]
[359201965,1745807432750,-154.81,0.000274,31]
[359201966,1745807432760,-154.81,0.000274,31]
[359201967,1745807432770,-154.81,0.000277,31]
[359201968,1745807432780,-154.81,0.000277,31]
[359201969,1745807432790,-154.81,0.000277,31]
[359201970,1745807432800,-154.81,0.000277,31]
[359201971,1745807432809,-154.81,0.000277,31]
[359201972,1745807432819,-2050.568,0.00028818,2]
[359201973,1745807432832,-7226.91132258,0.00028818,2]
[359201975,1745807432842,-209.54321548,0.00029164,2]
[359201977,1745807432851,-468.62230822,0.000299,8]
[359201979,1745807432861,-254.858,0.0003,2]
[359201981,1745807432871,-468.62230801,0.00030245,9]
[359201983,1745807432880,-500.0,0.00030431,11]
[359201985,1745807432890,-161.03810439,0.00030438,30]
[359201987,1745807432899,-468.62230801,0.0003059,9]
[359201988,1745807432910,-161.03810439,0.00030849,30]
[359201989,1745807432920,-468.62230801,0.00030934,9]
[359201991,1745807432931,-468.62230801,0.00031279,9]
[359201992,1745807432940,-468.62230801,0.00031624,10]
[359201993,1745807432949,-254.858,0.00031672,2]
[359201994,1745807432958,-160.0,0.00031766,2]
[359201996,1745807432969,-840.59878455,0.00031766,2]
[359201997,1745807432978,-65.97326926,0.00031766,2]
[359201998,1745807432992,-94.02673074,0.00031766,2]
[359201999,1745807433001,-468.62230801,0.00031969,10]
[359202000,1745807433011,-468.62230801,0.00032314,10]
[359202001,1745807433020,-468.62230801,0.00032659,10]
[359202002,1745807433029,-162.25281082,0.00032776,33]
[359202003,1745807433038,-1006.25317287,0.0003283,15]
[359202004,1745807433047,-223.0,0.00032876,2]
[359202005,1745807433057,-400.0,0.00032876,2]
[359202006,1745807433067,-500.0,0.00032876,2]
[359202007,1745807433076,-400.0,0.00032876,2]
[359202008,1745807433085,-400.0,0.00032876,2]
[359202009,1745807433093,-400.0,0.00032876,2]
[359202010,1745807433102,-400.0,0.00032876,2]
[359202011,1745807433112,-400.0,0.00032876,2]
[359202012,1745807433121,-510.62121167,0.00032876,2]
[359202013,1745807433131,-400.0,0.00032876,2]
[359202014,1745807433142,-400.0,0.00032876,2]
[359202015,1745807433151,-400.0,0.00032876,2]
[359202016,1745807433160,-192.68637983,0.00032876,2]
[359202017,1745807433169,-509.88853726,0.00032876,2]
[359202018,1745807433179,-400.0,0.00032876,2]
[359202019,1745807433188,-400.0,0.00032876,2]
[359202020,1745807433198,-301.2656651,0.00032876,2]
[359202021,1745807433208,-400.0,0.00032876,2]
[359202022,1745807433218,-214.72893305,0.00032876,2]
[359202023,1745807433378,-400.0,0.00032876,2]
[359202024,1745807433388,-400.0,0.00032876,2]
[359202025,1745807433398,-400.0,0.00032876,2]
[359202026,1745807433408,-400.0,0.00032876,2]
[359202027,1745807433418,-400.0,0.00032876,2]
[359202028,1745807433428,-400.0,0.00032876,2]
[359202029,1745807433437,-400.0,0.00032876,2]
[359202030,1745807433447,-400.0,0.00032876,2]
[359202031,1745807433456,-400.0,0.00032876,2]
[359202032,1745807433466,-400.0,0.00032876,2]
[359202033,1745807433475,-400.0,0.00032876,2]
[359202034,1745807433485,-530.26106418,0.00032876,2]
[359202035,1745807433495,-400.0,0.00032876,2]
[359202036,1745807433505,-400.0,0.00032876,2]
[359202037,1745807433515,-400.0,0.00032876,2]
[359202038,1745807433524,-400.0,0.00032876,2]
[359202039,1745807433534,-762.54,0.00032876,2]
[359202040,1745807433544,-500.0,0.00032876,2]
[359202041,1745807433554,-982.9,0.00032876,2]
[359202042,1745807433564,-400.0,0.00032876,2]
[359202043,1745807433573,-400.0,0.00032876,2]
[359202044,1745807433583,-400.0,0.00032876,2]
[359202045,1745807433595,-500.0,0.00032876,2]
[359202046,1745807433605,-500.0,0.00032876,2]
[359202047,1745807433615,-400.0,0.00032876,2]
[359202048,1745807433625,-549.04152126,0.00032876,2]
[359202049,1745807433635,-500.0,0.00032876,2]
[359202050,1745807433645,-562.53,0.00032876,2]
[359202051,1745807433655,-400.0,0.00032876,2]
[359202052,1745807433665,-400.0,0.00032876,2]
[359202053,1745807433675,-506.16585447,0.00032876,2]
[359202054,1745807433685,-338.41288611,0.00032876,2]
[359202055,1745807433696,-400.0,0.00032876,2]
[359202056,1745807433706,-540.3,0.00032876,2]
[359202057,1745807433719,-400.0,0.00032876,2]
[359202058,1745807433729,-400.0,0.00032876,2]
[359202059,1745807433739,-503.79158855,0.00032876,2]
[359202060,1745807433749,-506.64712329,0.00032876,2]
[359202061,1745807433759,-536.8,0.00032876,2]
[359202062,1745807433769,-400.0,0.00032876,2]
[359202063,1745807433779,-496.15846203,0.00032876,2]
[359202064,1745807433789,-400.0,0.00032876,2]
[359202065,1745807433798,-400.0,0.00032876,2]
[359202066,1745807433808,-505.54337907,0.00032876,2]
[359202067,1745807433818,-501.91559918,0.00032876,2]
[359202068,1745807433828,-503.22080403,0.00032876,2]
[359202069,1745807433838,-400.0,0.00032876,2]
[359202070,1745807433849,-205.9021066,0.00032999,40]
[359202071,1745807433859,-468.62230801,0.00033003,11]
[359202072,1745807433868,-400.0,0.00033147,2]
[359202073,1745807433878,-530.30345,0.00033147,2]
[359202074,1745807433887,-400.0,0.00033147,2]
[359202075,1745807433897,-512.87328333,0.00033147,2]
[359202076,1745807433906,-507.83329096,0.00033147,2]
[359202077,1745807433916,-527.75740899,0.00033147,2]
[359202078,1745807433925,-400.0,0.00033147,2]
[359202079,1745807433935,-505.38577181,0.00033147,2]
[359202080,1745807433945,-511.55963684,0.00033147,2]
[359202081,1745807433955,-508.84133168,0.00033147,2]
[359202082,1745807433968,-400.0,0.00033147,2]
[359202083,1745807433979,-534.0536047,0.00033147,2]
[359202084,1745807433989,-400.0,0.00033147,2]
[359202085,1745807433999,-400.0,0.00033147,2]
[359202086,1745807434011,-400.0,0.00033147,2]
[359202087,1745807434020,-400.0,0.00033147,2]
[359202088,1745807434030,-400.0,0.00033147,2]
[359202089,1745807434040,-503.45525287,0.00033147,2]
[359202090,1745807434052,-400.0,0.00033147,2]
[359202091,1745807434061,-505.07678446,0.00033147,2]
[359202092,1745807434072,-400.0,0.00033147,2]
[359202093,1745807434082,-400.0,0.00033147,2]
[359202094,1745807434092,-400.0,0.00033147,2]
[359202095,1745807434102,-400.0,0.00033147,2]
[359202096,1745807434113,-500.0,0.00033147,2]
[359202097,1745807434124,-238.85199927,0.00033147,2]
[359202098,1745807434135,-400.0,0.00033147,2]
[359202099,1745807434146,-515.4,0.00033147,2]
[359202100,1745807434157,-400.0,0.00033147,2]
[359202101,1745807434167,-400.0,0.00033147,2]
[359202102,1745807434176,-500.0,0.00033147,2]
[359202103,1745807434185,-500.0,0.00033148,2]
[359202104,1745807434195,-500.0,0.00033149,2]
[359202105,1745807434204,-355.47327564,0.00033149,2]
[359202106,1745807434214,-400.0,0.00033149,2]
[359202107,1745807434224,-400.0,0.00033149,2]
[359202108,1745807434234,-400.0,0.00033149,2]
[359202109,1745807434243,-510.04433855,0.00033149,2]
[359202110,1745807434253,-400.0,0.00033149,2]
[359202111,1745807434262,-518.40480531,0.00033149,2]
[359202112,1745807434271,-508.49533847,0.00033149,2]
[359202113,1745807434281,-506.99572861,0.00033149,2]
[359202114,1745807434290,-400.0,0.00033149,2]
[359202115,1745807434300,-400.0,0.00033149,2]
[359202116,1745807434310,-400.0,0.00033149,2]
[359202117,1745807434319,-400.0,0.00033149,2]
[359202118,1745807434329,-400.0,0.00033149,2]
[359202119,1745807434338,-400.0,0.00033149,2]
[359202120,1745807434349,-400.0,0.00033149,2]
[359202121,1745807434358,-449.93792477,0.00033149,2]
[359202122,1745807434371,-400.0,0.00033149,2]
[359202123,1745807434381,-400.0,0.00033149,2]
[359202124,1745807434391,-400.0,0.00033149,2]
[359202125,1745807434400,-497.29357443,0.00033149,2]
[359202126,1745807434410,-400.0,0.00033149,2]
[359202127,1745807434419,-504.7551285,0.00033149,2]
[359202128,1745807434429,-503.85908735,0.00033149,2]
[359202129,1745807434439,-515.69101626,0.00033149,2]
[359202130,1745807434448,-400.0,0.00033149,2]
[359202131,1745807434458,-400.0,0.00033149,2]
[359202132,1745807434471,-504.75076622,0.00033149,2]
[359202133,1745807434481,-400.0,0.00033149,2]
[359202134,1745807434490,-400.0,0.00033149,2]
[359202135,1745807434499,-400.0,0.00033149,2]
[359202136,1745807434509,-400.0,0.00033149,2]
[359202137,1745807434518,-400.0,0.00033149,2]
[359202138,1745807434528,-400.0,0.00033149,2]
[359202139,1745807434537,-502.85853979,0.00033149,2]
[359202140,1745807434547,-400.0,0.00033149,2]
[359202141,1745807434557,-187.21343162,0.00033149,2]
[359202142,1745807434643,-212.78656838,0.00033149,2]
[359202143,1745807434652,-400.0,0.00033149,2]
[359202144,1745807434662,-400.0,0.00033149,2]
[359202145,1745807434671,-400.0,0.00033149,2]
[359202146,1745807434680,-269.68854708,0.00033149,2]
[359202147,1745807434689,-503.20025853,0.00033149,2]
[359202148,1745807434698,-400.0,0.00033149,2]
[359202149,1745807434708,-180.44029739,0.00033149,7]
[359202150,1745807434719,-500.0,0.00033149,7]
[359202151,1745807434728,-192.60590803,0.00033149,7]
[359202152,1745807434738,-370.40538724,0.00033149,7]
[359202153,1745807434747,-400.0,0.0003315,2]
[359202154,1745807434756,-615.05790009,0.0003315,2]
[359202155,1745807434766,-400.0,0.0003315,2]
[359202156,1745807434776,-400.0,0.0003315,2]
[359202157,1745807434785,-400.0,0.0003315,2]
[359202158,1745807434795,-400.0,0.0003315,2]
[359202159,1745807434804,-400.0,0.0003315,2]
[359202160,1745807434813,-400.0,0.0003315,2]
[359202161,1745807434823,-400.0,0.0003315,2]
[359202162,1745807434832,-400.0,0.0003315,2]
[359202163,1745807434842,-400.0,0.0003315,2]
[359202164,1745807434851,-400.0,0.0003315,2]
[359202165,1745807434860,-400.0,0.0003315,2]
[359202166,1745807434870,-400.0,0.0003315,2]
[359202167,1745807434879,-400.0,0.0003315,2]
[359202168,1745807434888,-154.94451593,0.0003315,2]
[359202169,1745807434898,-400.0,0.0003315,2]
[359202170,1745807434907,-400.0,0.0003315,2]
[359202171,1745807434916,-400.0,0.0003315,2]
[359202172,1745807434925,-400.0,0.0003315,2]
[359202173,1745807434934,-400.0,0.0003315,2]
[359202174,1745807434944,-400.0,0.0003315,2]
[359202175,1745807434953,-762.54,0.0003315,2]
[359202176,1745807434964,-982.9,0.0003315,2]
[359202177,1745807434976,-400.0,0.0003315,2]
[359202178,1745807434985,-400.0,0.0003315,2]
[359202179,1745807434995,-400.0,0.0003315,2]
[359202180,1745807435004,-400.0,0.0003315,2]
[359202181,1745807435014,-562.53,0.0003315,2]
[359202182,1745807435023,-400.0,0.0003315,2]
[359202183,1745807435032,-400.0,0.0003315,2]
[359202184,1745807435042,-400.0,0.0003315,2]
[359202185,1745807435051,-540.3,0.0003315,2]
[359202186,1745807435060,-400.0,0.0003315,2]
[359202187,1745807435070,-400.0,0.0003315,2]
[359202188,1745807435079,-536.8,0.0003315,2]
[359202189,1745807435088,-400.0,0.0003315,2]
[359202190,1745807435097,-400.0,0.0003315,2]
[359202191,1745807435107,-540.35912744,0.0003315,2]
[359202192,1745807435118,-1500.0,0.00033165,2]
[359202193,1745807435127,-152.0,0.00033232,2]
[359202194,1745807435136,-151.0,0.00033299,41]
[359202195,1745807435146,-468.62230801,0.00033348,11]
[359202196,1745807435155,-150493.81821496,0.00033412,2]
[359202197,1745807435168,-610.92887904,0.00033412,2]
[359202198,1745807435177,-546.85395699,0.00033421,2]
[359202199,1745807435186,-184.90580397,0.00033421,2]
[359202200,1745807435197,-123.55000105,0.00033421,2]
[359202201,1745807435208,-333.69861134,0.00033421,2]
[359202202,1745807435225,-66.30138866,0.00033421,2]
[359202203,1745807435235,-400.0,0.00033421,2]
[359202204,1745807435244,-400.0,0.00033421,2]
[359202205,1745807435254,-400.0,0.00033421,2]
[359202206,1745807435265,-515.4,0.00033421,2]
[359202207,1745807435275,-400.0,0.00033421,2]
[359202208,1745807435284,-400.0,0.00033421,2]
[359202209,1745807435293,-377.27703765,0.00033423,2]
[359202210,1745807435302,-400.0,0.00033423,2]
[359202211,1745807435311,-400.0,0.00033423,2]
[359202212,1745807435321,-400.0,0.00033423,2]
[359202213,1745807435330,-400.0,0.00033423,2]
[359202214,1745807435339,-400.0,0.00033423,2]
[359202215,1745807435349,-400.0,0.00033423,2]
[359202216,1745807435359,-400.0,0.00033423,2]
[359202217,1745807435368,-400.0,0.00033423,2]
[359202218,1745807435377,-400.0,0.00033423,2]
[359202219,1745807435386,-400.0,0.00033423,2]
[359202220,1745807435395,-400.0,0.00033423,2]
[359202221,1745807435404,-400.0,0.00033423,2]
[359202222,1745807435414,-400.0,0.00033423,2]
[359202223,1745807435423,-400.0,0.00033423,2]
[359202224,1745807435432,-400.0,0.00033423,2]
[359202225,1745807435441,-400.0,0.00033423,2]
[359202226,1745807435451,-400.0,0.00033423,2]
[359202227,1745807435460,-400.0,0.00033423,2]
[359202228,1745807435470,-400.0,0.00033423,2]
[359202229,1745807435479,-400.0,0.00033423,2]
[359202230,1745807435488,-400.0,0.00033423,2]
[359202231,1745807435497,-400.0,0.00033423,2]
[359202232,1745807435507,-400.0,0.00033423,2]
[359202233,1745807435516,-400.0,0.00033423,2]
[359202234,1745807435526,-400.0,0.00033423,2]
[359202235,1745807435535,-400.0,0.00033423,2]